[Event "5th Baskent University Open 2022"]
[Site "Ankara"]
[Date "2022.07.03"]
[Round "3.21"]
[White "Aydin, Aytac"]
[Black "Turkmen, Ataberk"]
[Result "0-1"]
[ECO "B07"]
[WhiteElo "1725"]
[BlackElo "1935"]
[Annotator "NA RC"]
[PlyCount "114"]
[EventDate "2022.07.02"]
[EventType "swiss"]
[EventCountry "TUR"]
[SourceTitle "playchess.com"]
[Source "ChessBase"]
[SourceQuality "1"]
[TimeControl "5400+30"]

1. d4 {[%emt 0:01:00]} Nf6 {[%emt 0:03:00]} 2. Nf3 {[%emt 0:01:30]} d6 {[%emt 0:03:30]} 3. Nbd2 {[%emt 0:02:30]} g6 {[%emt 0:01:30]} 4. e4 {[%emt 0:00:30]} Bg7 {[%emt 0:00:30]} 5. Bd3 {[%emt 0:01:30]} O-O {[%emt 0:00:30]} 6. O-O {[%emt 0:00:00]} Nh5 {[%emt 0:17:30]} 7. Re1 {[%emt 0:07:00]} e5 {[%emt 0:01:30]} 8. dxe5 {[%emt 0:06:30]} dxe5 {[%emt 0:00:30]} 9. a4 {[%emt 0:07:30]} Nc6 {[%emt 0:01:30]} 10. Nc4 {[%emt 0:02:30]} f6 {[%emt 0:14:30]} 11. b3 {[%emt 0:10:30]} Nf4 {[%emt 0:04:30]} 12. Bf1 {[%emt 0:09:30]} Bg4 {[%emt 0:03:30]} 13. Ba3 {[%emt 0:11:30]} Qxd1 {[%emt 0:10:30]} 14. Raxd1 {[%emt 0:01:30]} Rfd8 {[%emt 0:04:30]} 15. c3 {[%emt 0:03:30]} Nh3+ {[%emt 0:05:30]} 16. gxh3 {[%emt 0:00:30]} Bxf3 {[%emt 0:00:00]} 17. Rxd8+ {[%emt 0:02:30]} Rxd8 {[%emt 0:00:00]} 18. b4 {[%emt 0:03:30]} Bf8 {[%emt 0:02:30]} 19. Bc1 {[%emt 0:16:15]} Kg7 {[%emt 0:07:05]} 20. Nd2 {[%emt 0:03:56]} Bh5 {[%emt 0:00:17]} 21. Nc4 {[%emt 0:01:26]} Nb8 {[%emt 0:07:05]} 22. Be3 {[%emt 0:01:26]} b6 {[%emt 0:00:34]} 23. Kg2 {[%emt 0:01:53]} Rd1 {[%emt 0:01:24]} 24. Rxd1 {[%emt 0:01:14]} Bxd1 {[%emt 0:00:02]} 25. Nb2 {[%emt 0:01:11]} Bb3 {[%emt 0:01:28]} 26. Bc4 {[%emt 0:00:36]} Bxc4 {[%emt 0:00:30]} 27. Nxc4 {[%emt 0:00:00]} Nd7 {[%emt 0:00:19]} 28. Kf1 {[%emt 0:02:01]} Kf7 {[%emt 0:01:34]} 29. Ke2 {[%emt 0:00:30]} Ke6 {[%emt 0:00:00]} 30. Kd3 {[%emt 0:00:11]} f5 {[%emt 0:00:45]} 31. f3 {[%emt 0:00:11]} a6 {[%emt 0:00:54]} 32. Nd2 {[%emt 0:00:51]} Be7 {[%emt 0:01:33]} 33. Nb3 {[%emt 0:00:38]} h5 {[%emt 0:01:22]} 34. Nd2 {[%emt 0:00:42]} f4 {[%emt 0:00:30]} 35. Bf2 {[%emt 0:00:30]} g5 {[%emt 0:00:18]} 36. Nc4 {[%emt 0:00:13]} Nf6 {[%emt 0:01:00]} 37. Nd2 {[%emt 0:00:29]} g4 {[%emt 0:00:13]} 38. Bh4 {[%emt 0:00:50]} gxh3 {[%emt 0:01:46]} 39. Bf2 {[%emt 0:00:42]} Nh7 {[%emt 0:00:44]} 40. Kc4 {[%emt 0:00:29]} Nf8 {[%emt 0:00:51]} 41. a5 {[%emt 0:00:37]} b5+ {[%emt 0:00:30]} 42. Kd3 {[%emt 0:00:00]} c5 {[%emt 0:00:56]} 43. Bxc5 {[%emt 0:01:18]} Bxc5 {[%emt 0:00:30]} 44. bxc5 {[%emt 0:00:00]} Kd7 {[%emt 0:00:09]} 45. c4 {[%emt 0:00:29]} b4 {[%emt 0:01:03]} 46. Kc2 {[%emt 0:00:30]} Kc6 {[%emt 0:00:00]} 47. Nb3 {[%emt 0:00:50]} Ne6 {[%emt 0:00:00]} 48. Kb2 {[%emt 0:00:52]} Ng5 {[%emt 0:00:00]} 49. Nd2 {[%emt 0:00:19]} Kxc5 {[%emt 0:00:00]} 50. Kc2 {[%emt 0:00:06]} Ne6 {[%emt 0:00:33]} 51. Kd3 {[%emt 0:00:57]} Nd4 {[%emt 0:00:17]} 52. Nf1 {[%emt 0:00:17]} Nxf3 {[%emt 0:00:30]} 53. Ke2 {[%emt 0:00:06]} Nd4+ {[%emt 0:00:27]} 54. Kd3 {[%emt 0:00:09]} Nc6 {[%emt 0:00:25]} 55. Nd2 {[%emt 0:00:24]} Nxa5 {[%emt 0:00:00]} 56. Kc2 {[%emt 0:00:59]} Kd4 {[%emt 0:00:00]} 57. Nf3+ {[%emt 0:00:52]} Kxe4 {[%emt 0:00:00]} 0-1

[Event "5th Baskent University Open 2022"]
[Site "Ankara"]
[Date "2022.07.03"]
[Round "3.22"]
[White "Buke, Furkan"]
[Black "Er, Mira"]
[Result "1-0"]
[ECO "B01"]
[WhiteElo "1979"]
[BlackElo "1632"]
[Annotator "NA RC"]
[PlyCount "121"]
[EventDate "2022.07.02"]
[EventType "swiss"]
[EventCountry "TUR"]
[SourceTitle "playchess.com"]
[Source "ChessBase"]
[SourceQuality "1"]
[TimeControl "5400+30"]

1. e4 {[%emt 0:01:00]} d5 {[%emt 0:01:00]} 2. exd5 {[%emt 0:00:30]} Qxd5 {[%emt 0:00:30]} 3. Nc3 {[%emt 0:00:30]} Qd6 {[%emt 0:00:00]} 4. d4 {[%emt 0:00:00]} Nf6 {[%emt 0:00:00]} 5. Nf3 {[%emt 0:00:00]} c6 {[%emt 0:00:30]} 6. Ne5 {[%emt 0:00:00]} Nbd7 {[%emt 0:00:30]} 7. Nc4 {[%emt 0:00:00]} Qc7 {[%emt 0:00:30]} 8. Qf3 {[%emt 0:00:30]} Nb6 {[%emt 0:00:00]} 9. Bf4 {[%emt 0:00:30]} Qd8 {[%emt 0:01:00]} 10. Be5 {[%emt 0:00:30]} Be6 {[%emt 0:01:30]} 11. Ne3 {[%emt 0:01:30]} Nbd5 {[%emt 0:05:30]} 12. Nexd5 {[%emt 0:11:30]} Bxd5 {[%emt 0:00:30]} 13. Nxd5 {[%emt 0:00:30]} Qxd5 {[%emt 0:00:30]} 14. Qxd5 {[%emt 0:01:30]} Nxd5 {[%emt 0:00:00]} 15. c4 {[%emt 0:01:30]} Nf6 {[%emt 0:01:00]} 16. Be2 {[%emt 0:01:30]} e6 {[%emt 0:00:30]} 17. O-O-O {[%emt 0:00:30]} O-O-O {[%emt 0:00:30]} 18. Bf4 {[%emt 0:03:30]} Bd6 {[%emt 0:00:30]} 19. Be3 {[%emt 0:00:00]} Kb8 {[%emt 0:01:30]} 20. a3 {[%emt 0:04:00]} a6 {[%emt 0:00:30]} 21. Bf3 {[%emt 0:03:30]} Rc8 {[%emt 0:00:30]} 22. Kc2 {[%emt 0:05:30]} Rhd8 {[%emt 0:01:30]} 23. Rd3 {[%emt 0:02:30]} b5 {[%emt 0:08:30]} 24. b3 {[%emt 0:03:30]} Nd7 {[%emt 0:07:30]} 25. Rhd1 {[%emt 0:02:30]} Nf8 {[%emt 0:02:30]} 26. g3 {[%emt 0:03:30]} Ng6 {[%emt 0:00:00]} 27. Bh5 {[%emt 0:03:30]} Kb7 {[%emt 0:01:00]} 28. a4 {[%emt 0:01:30]} Be7 {[%emt 0:02:30]} 29. f4 {[%emt 0:03:30]} Bf6 {[%emt 0:05:30]} 30. Bf3 {[%emt 0:00:30]} b4 {[%emt 0:01:30]} 31. Kb1 {[%emt 0:03:30]} Ne7 {[%emt 0:00:30]} 32. g4 {[%emt 0:01:30]} g6 {[%emt 0:00:00]} 33. Bf2 {[%emt 0:05:30]} a5 {[%emt 0:00:00]} 34. h4 {[%emt 0:04:30]} Rc7 {[%emt 0:01:30]} 35. Be4 {[%emt 0:04:30]} Rcd7 {[%emt 0:01:30]} 36. Kc2 {[%emt 0:00:30]} Rc7 {[%emt 0:01:30]} 37. Kd2 {[%emt 0:01:30]} Bg7 {[%emt 0:00:30]} 38. Bf3 {[%emt 0:01:30]} Rcd7 {[%emt 0:00:30]} 39. Ke2 {[%emt 0:00:30]} Rh8 {[%emt 0:03:30]} 40. d5 {[%emt 0:02:30]} exd5 {[%emt 0:01:30]} 41. cxd5 {[%emt 0:00:00]} cxd5 {[%emt 0:01:30]} 42. Bxd5+ {[%emt 0:00:00]} Nxd5 {[%emt 0:00:30]} 43. Rxd5 {[%emt 0:00:30]} Re8+ {[%emt 0:00:30]} 44. Kf3 {[%emt 0:04:30]} Rc7 {[%emt 0:00:30]} 45. Rb5+ {[%emt 0:02:30]} Kc8 {[%emt 0:00:30]} 46. Rd3 {[%emt 0:01:45]} Rc3 {[%emt 0:01:30]} 47. Rxc3+ {[%emt 0:01:27]} bxc3 {[%emt 0:00:00]} 48. Rxa5 {[%emt 0:00:17]} Re7 {[%emt 0:01:00]} 49. Ra8+ {[%emt 0:01:29]} Kd7 {[%emt 0:00:00]} 50. Ra7+ {[%emt 0:00:00]} Ke8 {[%emt 0:00:00]} 51. Rxe7+ {[%emt 0:00:28]} Kxe7 {[%emt 0:00:30]} 52. Ke2 {[%emt 0:00:30]} Kd6 {[%emt 0:00:00]} 53. Kd3 {[%emt 0:00:00]} Kd5 {[%emt 0:00:00]} 54. a5 {[%emt 0:00:00]} Kc6 {[%emt 0:00:00]} 55. a6 {[%emt 0:01:33]} f5 {[%emt 0:00:00]} 56. gxf5 {[%emt 0:00:00]} gxf5 {[%emt 0:00:30]} 57. b4 {[%emt 0:00:08]} h5 {[%emt 0:00:30]} 58. b5+ {[%emt 0:00:00]} Kc7 {[%emt 0:00:00]} 59. b6+ {[%emt 0:00:18]} Kb8 {[%emt 0:00:00]} 60. b7 {[%emt 0:00:00]} Bf6 {[%emt 0:00:30]} 61. Bc5 {[%emt 0:00:05]} 1-0

[Event "5th Baskent University Open 2022"]
[Site "Ankara"]
[Date "2022.07.03"]
[Round "3.23"]
[White "Ibik, Halit Yavuz"]
[Black "Dogan, Talha Yigit"]
[Result "1/2-1/2"]
[ECO "B78"]
[WhiteElo "1967"]
[BlackElo "1589"]
[Annotator "NA RC"]
[PlyCount "81"]
[EventDate "2022.07.02"]
[EventType "swiss"]
[EventCountry "TUR"]
[SourceTitle "playchess.com"]
[Source "ChessBase"]
[SourceQuality "1"]
[TimeControl "5400+30"]

1. e4 {[%emt 0:01:00]} c5 {[%emt 0:01:00]} 2. Nf3 {[%emt 0:00:30]} d6 {[%emt 0:00:30]} 3. d4 {[%emt 0:00:30]} cxd4 {[%emt 0:00:30]} 4. Nxd4 {[%emt 0:00:30]} Nf6 {[%emt 0:00:30]} 5. Nc3 {[%emt 0:00:30]} g6 {[%emt 0:00:30]} 6. f3 {[%emt 0:00:30]} Bg7 {[%emt 0:00:30]} 7. Be3 {[%emt 0:00:30]} O-O {[%emt 0:00:30]} 8. Bc4 {[%emt 0:00:30]} Bd7 {[%emt 0:00:30]} 9. Qd2 {[%emt 0:01:30]} Nc6 {[%emt 0:00:30]} 10. O-O-O {[%emt 0:00:30]} Rc8 {[%emt 0:00:30]} 11. Bb3 {[%emt 0:00:00]} Nxd4 {[%emt 0:01:30]} 12. Bxd4 {[%emt 0:00:00]} b5 {[%emt 0:00:00]} 13. e5 {[%emt 0:18:30]} dxe5 {[%emt 0:12:00]} 14. Bxe5 {[%emt 0:00:30]} Bc6 {[%emt 0:00:30]} 15. Qxd8 {[%emt 0:08:30]} Rfxd8 {[%emt 0:00:30]} 16. a3 {[%emt 0:00:30]} Bh6+ {[%emt 0:31:30]} 17. Kb1 {[%emt 0:00:30]} Nd7 {[%emt 0:00:30]} 18. Bd4 {[%emt 0:00:30]} Nb6 {[%emt 0:02:30]} 19. Rhe1 {[%emt 0:01:30]} e6 {[%emt 0:02:30]} 20. Ne4 {[%emt 0:12:30]} Bxe4 {[%emt 0:01:30]} 21. fxe4 {[%emt 0:00:30]} Bg7 {[%emt 0:10:30]} 22. Bf2 {[%emt 0:02:30]} Be5 {[%emt 0:00:30]} 23. h3 {[%emt 0:03:30]} h6 {[%emt 0:04:30]} 24. c3 {[%emt 0:01:30]} Rxd1+ {[%emt 0:07:30]} 25. Rxd1 {[%emt 0:00:30]} Rc6 {[%emt 0:00:30]} 26. Rd8+ {[%emt 0:05:30]} Kg7 {[%emt 0:00:00]} 27. Bc2 {[%emt 0:17:30]} a6 {[%emt 0:00:00]} 28. Rd1 {[%emt 0:07:18]} Nc4 {[%emt 0:04:32]} 29. a4 {[%emt 0:00:57]} b4 {[%emt 0:05:37]} 30. cxb4 {[%emt 0:01:28]} Nxb2 {[%emt 0:00:09]} 31. Rd7 {[%emt 0:01:24]} Nc4 {[%emt 0:02:08]} 32. Bb3 {[%emt 0:01:20]} Bc3 {[%emt 0:02:38]} 33. b5 {[%emt 0:04:20]} axb5 {[%emt 0:00:44]} 34. axb5 {[%emt 0:04:11]} Na3+ {[%emt 0:00:30]} 35. Ka2 {[%emt 0:00:30]} Nxb5 {[%emt 0:00:00]} 36. Ba4 {[%emt 0:00:00]} Be5 {[%emt 0:00:35]} 37. Bxb5 {[%emt 0:06:03]} Rc2+ {[%emt 0:00:30]} 38. Kb3 {[%emt 0:00:30]} Rxf2 {[%emt 0:00:00]} 39. g4 {[%emt 0:00:18]} Rf3+ {[%emt 0:00:18]} 40. Rd3 {[%emt 0:00:12]} Rf2 {[%emt 0:01:28]} 41. Be8 {[%emt 0:00:50]} 1/2-1/2

[Event "5th Baskent University Open 2022"]
[Site "Ankara"]
[Date "2022.07.03"]
[Round "3.24"]
[White "Metin, Enis"]
[Black "Ekici, Caner"]
[Result "1-0"]
[ECO "A03"]
[WhiteElo "1750"]
[BlackElo "1639"]
[Annotator "NA RC"]
[PlyCount "59"]
[EventDate "2022.07.02"]
[EventType "swiss"]
[EventCountry "TUR"]
[SourceTitle "playchess.com"]
[Source "ChessBase"]
[SourceQuality "1"]
[TimeControl "5400+30"]

1. f4 {[%emt 0:01:00]} d5 {[%emt 0:01:00]} 2. Nf3 {[%emt 0:00:30]} Nf6 {[%emt 0:00:30]} 3. e3 {[%emt 0:00:00]} c5 {[%emt 0:01:30]} 4. b3 {[%emt 0:00:00]} Nc6 {[%emt 0:05:30]} 5. Bb5 {[%emt 0:00:30]} Bg4 {[%emt 0:07:30]} 6. O-O {[%emt 0:03:30]} g6 {[%emt 0:07:30]} 7. Bb2 {[%emt 0:03:30]} Bg7 {[%emt 0:00:30]} 8. d3 {[%emt 0:02:30]} O-O {[%emt 0:00:30]} 9. Bxc6 {[%emt 0:00:30]} bxc6 {[%emt 0:00:30]} 10. Nbd2 {[%emt 0:00:00]} Qb6 {[%emt 0:05:30]} 11. Qe1 {[%emt 0:02:00]} Nd7 {[%emt 0:10:30]} 12. Bxg7 {[%emt 0:03:30]} Kxg7 {[%emt 0:00:00]} 13. Qh4 {[%emt 0:07:30]} Bxf3 {[%emt 0:13:00]} 14. Rxf3 {[%emt 0:00:00]} Rae8 {[%emt 0:00:30]} 15. Rh3 {[%emt 0:05:00]} h5 {[%emt 0:00:30]} 16. f5 {[%emt 0:01:30]} Qb4 {[%emt 0:07:30]} 17. Qxb4 {[%emt 0:08:30]} cxb4 {[%emt 0:00:30]} 18. a3 {[%emt 0:00:00]} a5 {[%emt 0:01:30]} 19. axb4 {[%emt 0:03:00]} axb4 {[%emt 0:00:30]} 20. Ra7 {[%emt 0:02:30]} Rd8 {[%emt 0:27:30]} 21. Rh4 {[%emt 0:04:30]} c5 {[%emt 0:01:55]} 22. e4 {[%emt 0:00:30]} d4 {[%emt 0:04:19]} 23. Nc4 {[%emt 0:00:30]} Rh8 {[%emt 0:02:14]} 24. Rf4 {[%emt 0:00:30]} g5 {[%emt 0:00:11]} 25. Rf1 {[%emt 0:00:30]} Rhe8 {[%emt 0:00:05]} 26. e5 {[%emt 0:00:30]} f6 {[%emt 0:00:46]} 27. e6 {[%emt 0:00:30]} Ne5 {[%emt 0:01:20]} 28. Nxe5 {[%emt 0:00:30]} fxe5 {[%emt 0:00:00]} 29. f6+ {[%emt 0:00:30]} Kg6 {[%emt 0:00:00]} 30. f7 {[%emt 0:02:30]} 1-0

[Event "5th Baskent University Open 2022"]
[Site "Ankara"]
[Date "2022.07.04"]
[Round "4.1"]
[White "Rasulov, Vugar"]
[Black "Caputcuoglu, Zeki Berke"]
[Result "1-0"]
[ECO "C76"]
[WhiteElo "2458"]
[BlackElo "2203"]
[Annotator "TA"]
[PlyCount "81"]
[EventDate "2022.07.02"]
[EventType "swiss"]
[EventCountry "TUR"]
[SourceTitle "playchess.com"]
[Source "ChessBase"]
[SourceQuality "1"]
[TimeControl "5400+30"]

{[%evp 15,81,22,33,29,35,9,34,31,30,32,37,42,40,35,38,16,64,56,79,79,72,49,85,8,28,19,22,20,109,100,117,121,116,78,124,127,150,129,132,133,189,176,328,314,332,303,314,265,354,356,334,343,345,326,330,322,358,312,327,250,379,309,328,336,458,443,1576,1339]} 1. e4 {[%emt 0:01:00]} e5 {[%emt 0:01:00]} 2. Nf3 {[%emt 0:00:30]} Nc6 {[%emt 0:00:30]} 3. Bb5 {[%emt 0:00:00]} a6 {[%emt 0:00:30]} 4. Ba4 {[%emt 0:00:00]} d6 {[%emt 0:00:30]} 5. O-O {[%emt 0:00:00]} Bd7 {[%emt 0:00:00]} 6. c3 {[%emt 0:00:00]} g6 {[%emt 0:00:00]} 7. d4 {[%emt 0:00:30]} Bg7 {[%emt 0:00:00]} 8. d5 {[%emt 0:02:30]} Nce7 {[%emt 0:01:00]} 9. Bxd7+ {[%emt 0:00:30] C76: Ruy Lopez: Deferred Steinitz: 5 c3 Bd7 6 d4 g6.} Qxd7 {[%emt 0:00:30]} 10. Be3 {[%emt 0:00:30]} h6 {[%emt 0:01:30]} (10... Nf6 $5 {[%cal Rf6e4]}) 11. Nfd2 {[%emt 0:01:30] White is slightly better.} f5 {[%emt 0:03:30] aiming for ...f4.} 12. f3 $1 {[%emt 0:00:00]} Nf6 {[%emt 0:00:30]} 13. c4 {[%emt 0:00:00]} O-O {[%emt 0:01:30]} 14. Nc3 {[%emt 0:00:30]} c6 {[%emt 0:15:30]} 15. Kh1 {[%emt 0:03:30] [#]} cxd5 $146 {[%emt 0:09:30]} (15... Rac8 $11) ({Predecessor:} 15... g5 16. Bg1 f4 17. c5 cxd5 18. exd5 Nexd5 19. Qb3 Qf7 20. Nce4 Ne3 21. Nxf6+ Bxf6 22. Bxe3 fxe3 23. Qxe3 {½-½ (30) Aroshidze,L (2516)-Alonso Rosell,A (2537) Barcelona 2017}) 16. cxd5 $14 {[%emt 0:01:30]} b5 {[%emt 0:00:30]} 17. Qb3 {[%emt 0:01:30]} Rab8 {[%emt 0:02:30]} 18. Qb4 {[%emt 0:04:30]} Rfc8 {[%emt 0:04:30] [#]} 19. Rfc1 {[%emt 0:05:30] White is more active.} (19. a4 $1 $16) 19... Kh7 {[%emt 0:07:30]} 20. Qb3 {[%emt 0:06:30]} b4 {[%emt 0:13:30]} 21. Nd1 {[%emt 0:02:30]} a5 {[%emt 0:04:30] [#]} (21... Qb5 $11 {keeps the balance.}) 22. Qd3 $1 $16 {[%emt 0:02:30]} Rxc1 {[%emt 0:02:30]} 23. Rxc1 {[%emt 0:01:30]} Qa4 {[%emt 0:05:30]} 24. Ra1 {[%emt 0:07:30]} fxe4 {[%emt 0:03:30]} (24... Qd7 $142) 25. fxe4 {[%emt 0:00:00]} Rf8 {[%emt 0:08:03]} 26. b3 {[%emt 0:03:00]} Qd7 {[%emt 0:01:28][%cal Of6d5]} 27. Rc1 {[%emt 0:00:30]} Qg4 {[%emt 0:03:47]} (27... Qb7 $16 28. Nf2 Ra8) 28. Nf2 $36 {[%emt 0:02:30][%mdl 2048] White is on the roll.} Qh5 {[%emt 0:01:12]} (28... Qd7 29. Qa6 Nfxd5 30. exd5 Nxd5) 29. Nc4 $18 {[%emt 0:01:30]} Ne8 {[%emt 0:06:40]} 30. Nxa5 {[%emt 0:02:30]} Bf6 {[%emt 0:00:51]} 31. Qd1 {[%emt 0:00:30]} Bg5 {[%emt 0:00:31]} 32. Qxh5 {[%emt 0:00:30]} gxh5 {[%emt 0:00:30]} 33. Bxg5 {[%emt 0:00:30]} hxg5 {[%emt 0:00:00]} 34. Kg1 {[%emt 0:00:00]} Ng6 {[%emt 0:02:09]} 35. g3 {[%emt 0:00:00] Inhibits Nf4.} Rf3 {[%emt 0:00:49]} 36. Nc4 {[%emt 0:00:30]} g4 {[%emt 0:00:03]} 37. Kg2 {[%emt 0:01:30]} Rf7 {[%emt 0:01:06]} (37... Nh8 $142 38. h3 h4) 38. Rc2 {[%emt 0:00:30]} Kh6 {[%emt 0:00:57]} 39. Ne3 {[%emt 0:01:30]} Ng7 {[%emt 0:00:25]} 40. Rc6 {[%emt 0:00:30]} Rf3 {[%emt 0:01:09] [#]} (40... Ne8 $142 41. Nf5+ Kh7) 41. Nexg4+ $1 {[%emt 0:00:30][%mdl 512] Weighted Error Value: White=0.15 (very precise) /Black=0.33} 1-0

[Event "5th Baskent University Open 2022"]
[Site "Ankara"]
[Date "2022.07.04"]
[Round "4.2"]
[White "Aliyev, Elnur"]
[Black "Annaberdiev, Meilis"]
[Result "0-1"]
[ECO "B31"]
[WhiteElo "2142"]
[BlackElo "2484"]
[Annotator "TA"]
[PlyCount "86"]
[EventDate "2022.07.02"]
[EventType "swiss"]
[EventCountry "TUR"]
[SourceTitle "playchess.com"]
[Source "ChessBase"]
[SourceQuality "1"]
[TimeControl "5400+30"]

{[%evp 12,86,0,0,8,6,5,1,10,0,3,0,18,26,29,21,30,-33,-29,-29,-29,-30,-31,-25,-25,-42,-37,-47,-57,-51,-32,-38,-45,-105,-100,-151,-139,-120,-152,-133,-147,-127,-133,-110,-96,-187,-170,-194,-185,-220,-211,-370,-305,-296,-288,-479,-422,-415,-402,-381,-321,-8179,-6363,-5393,-5289,-29978,-29977,-29982,-29983,-29987,-29982,-29982,-29983,-29982,-29983,-29989,-29990]} 1. e4 {[%emt 0:01:00] ChessBase II} c5 {[%emt 0:02:00]} 2. Nf3 {[%emt 0:01:30]} Nc6 {[%emt 0:01:30]} 3. Bb5 {[%emt 0:00:00]} g6 {[%emt 0:00:00]} 4. O-O {[%emt 0:01:00]} Bg7 {[%emt 0:00:00]} 5. Na3 {[%emt 0:01:30]} e5 {[%emt 0:07:30]} 6. c3 {[%emt 0:01:30]} Nge7 {[%emt 0:00:30]} 7. Nc4 {[%emt 0:09:30] aiming for Nd6+.} O-O {[%emt 0:04:30] B31: Sicilian: 2...Nc6 3 Bb5 g6.} 8. Nd6 {[%emt 0:02:30][%cal Od2d4]} Qc7 {[%emt 0:00:30]} 9. Nxc8 {[%emt 0:00:30]} Raxc8 {[%emt 0:00:00] The position is equal.} 10. d3 {[%emt 0:04:30]} a6 {[%emt 0:02:00]} 11. Bc4 {[%emt 0:01:30]} b5 {[%emt 0:01:30]} 12. Bb3 {[%emt 0:00:30]} Na5 {[%emt 0:00:00][%cal Bc6a5,Ba5b3,Bb3a1][%mdl 32]} 13. Bg5 {[%emt 0:03:30]} Nxb3 {[%emt 0:01:00] [#]} 14. Bxe7 $146 {[%emt 0:01:30]} (14. axb3 $11 f6 15. Be3) ({Predecessor:} 14. axb3 f6 15. Be3 Qb7 16. Qb1 Kh8 17. Qa2 Rc6 18. d4 cxd4 19. cxd4 d5 20. dxe5 fxe5 {1-0 (38) Keller,D-Nievergelt,E Zuerich 1960 EXT 2021 [ChessBase II]}) 14... Nxa1 $15 {[%emt 0:00:30]} 15. Bxf8 {[%emt 0:00:00]} Rxf8 {[%emt 0:00:30]} 16. Qxa1 {[%emt 0:01:00]} Qc6 {[%emt 0:00:30]} 17. Re1 {[%emt 0:08:30]} d5 {[%emt 0:01:30]} 18. Qc1 {[%emt 0:09:30]} Rd8 {[%emt 0:05:30]} 19. c4 {[%emt 0:10:30]} bxc4 {[%emt 0:14:30]} 20. exd5 {[%emt 0:00:30]} Qxd5 {[%emt 0:00:00]} 21. dxc4 {[%emt 0:00:00]} Qd6 {[%emt 0:00:00]} 22. h3 {[%emt 0:01:00]} (22. Re2 $15) 22... f5 $17 {[%emt 0:01:30]} 23. Nh2 {[%emt 0:04:30] [#]} ({Better is} 23. Re2) 23... Qd2 $1 {[%emt 0:11:30]} 24. Nf1 {[%emt 0:03:30]} Qxc1 {[%emt 0:00:30] Black is much more active.} 25. Rxc1 {[%emt 0:00:30][%mdl 4096] Endgame KRB-KRN} e4 {[%emt 0:00:00]} 26. b3 {[%emt 0:02:30]} Bh6 {[%emt 0:00:00]} 27. Re1 {[%emt 0:07:30]} Rd3 {[%emt 0:01:30]} 28. g4 {[%emt 0:00:30] [#]} (28. Ne3 $17) 28... Kf7 $1 $19 {[%emt 0:04:30]} ({Resist} 28... Rxh3 29. gxf5 gxf5 30. Ng3 $14) 29. gxf5 {[%emt 0:00:30]} gxf5 {[%emt 0:00:00]} 30. Kg2 {[%emt 0:01:30]} Ke6 {[%emt 0:03:00]} 31. Re2 $2 {[%emt 0:07:52]} (31. Ne3 {was called for.}) 31... a5 {[%emt 0:01:30]} 32. Ng3 {[%emt 0:03:45]} Ke5 {[%emt 0:05:30]} 33. Re1 $2 {[%emt 0:01:59]} (33. h4) 33... Bd2 {[%emt 0:02:30]} 34. Re2 {[%emt 0:01:15]} Bg5 {[%emt 0:00:30]} 35. Re1 {[%emt 0:00:20]} Bh4 {[%emt 0:00:30] Strongly threatening ...Bxg3.} 36. Re3 {[%emt 0:04:59]} (36. Re2) 36... Bxg3 {[%emt 0:02:30]} 37. Rxg3 {[%emt 0:00:34]} Rxg3+ {[%emt 0:00:30]} 38. Kxg3 {[%emt 0:00:27] KP-KP} f4+ {[%emt 0:00:30] Black mates.} 39. Kg2 {[%emt 0:05:50]} Kd4 {[%emt 0:00:30]} 40. Kf1 {[%emt 0:00:30]} Kc3 {[%emt 0:00:30]} 41. Ke2 {[%emt 0:00:26]} Kb2 {[%emt 0:00:00]} 42. f3 {[%emt 0:00:58]} e3 {[%emt 0:00:00]} ({Not} 42... Kxa2 43. fxe4 Kxb3 44. e5 $11) 43. b4 {[%emt 0:00:22]} axb4 {[%emt 0:00:30] Weighted Error Value: White=0.51/Black=0.06 (flawless)} 0-1